[Event "*** Monthly 3|2 Blitz Masters"]
[Site "Chess.com"]
[Date "2014.10.28"]
[Round "8"]
[White "MichiganEagle"]
[Black "Trendle"]
[Result "1/2-1/2"]
[WhiteElo "2275"]
[BlackElo "2208"]
[TimeControl "180+2"]
[EndTime "13:27:33 PDT"]
[Termination "Game drawn by agreement"]

1. d4 {[%clk 0:03:00]} 1... f5 {[%clk 0:02:58.2]} 2. Nc3 {[%clk 0:02:58.2]} 2...
Nf6 {[%clk 0:02:59.4]} 3. Bg5 {[%clk 0:02:58.1]} 3... d5 {[%clk 0:03:00.9]} 4.
Bxf6 {[%clk 0:02:57.6]} 4... exf6 {[%clk 0:03:02.8]} 5. e3 {[%clk 0:02:59.2]}
5... Be6 {[%clk 0:03:04.1]} 6. Bd3 {[%clk 0:03:00.1]} 6... Nc6 {[%clk
0:03:05.5]} 7. a3 {[%clk 0:02:59.6]} 7... Qd7 {[%clk 0:03:06.6]} 8. Nge2 {[%clk
0:02:58.4]} 8... Ne7 {[%clk 0:03:05.3]} 9. Nf4 {[%clk 0:02:56]} 9... Bf7 {[%clk
0:03:06.8]} 10. h4 {[%clk 0:02:55.9]} 10... h5 {[%clk 0:03:07.3]} 11. Qd2 {[%clk
0:02:30.4]} 11... Nc8 {[%clk 0:02:56.6]} 12. f3 {[%clk 0:02:27.3]} 12... c6
{[%clk 0:02:41.9]} 13. O-O-O {[%clk 0:02:26.8]} 13... Nd6 {[%clk 0:02:31.8]} 14.
e4 {[%clk 0:02:23]} 14... fxe4 {[%clk 0:02:19.7]} 15. fxe4 {[%clk 0:02:24.9]}
15... dxe4 {[%clk 0:02:19.7]} 16. Nxe4 {[%clk 0:02:25]} 16... Nxe4 {[%clk
0:02:18.2]} 17. Bxe4 {[%clk 0:02:26.9]} 17... O-O-O {[%clk 0:02:17.8]} 18. Qa5
{[%clk 0:02:10.5]} 18... Kb8 {[%clk 0:02:13.6]} 19. d5 {[%clk 0:02:11]} 19...
Bd6 {[%clk 0:02:06.9]} 20. Ng6 {[%clk 0:01:21.4]} 20... Rhe8 {[%clk 0:01:02.4]}
21. dxc6 {[%clk 0:01:17.8]} 21... Qg4 {[%clk 0:01:01.1]} 22. Qb5 {[%clk
0:00:34.5]} 22... b6 {[%clk 0:00:35.3]} 23. Qa6 {[%clk 0:00:17.4]} 23... Qc8
{[%clk 0:00:36.9]} 24. Qxc8+ {[%clk 0:00:14.8]} 24... Kxc8 {[%clk 0:00:38.8]}
25. Bf5+ {[%clk 0:00:15]} 25... Kc7 {[%clk 0:00:39.3]} 26. Rhe1 {[%clk 0:00:13]}
26... Kxc6 {[%clk 0:00:37.2]} 27. b4 {[%clk 0:00:11.4]} 27... Bg3 {[%clk
0:00:29.8]} 28. Rxe8 {[%clk 0:00:10.6]} 28... Rxd1+ {[%clk 0:00:29.5]} 29. Kxd1
{[%clk 0:00:11]} 29... Bxe8 {[%clk 0:00:31.4]} 30. Be4+ {[%clk 0:00:08.8]} 30...
Kd6 {[%clk 0:00:31]} 31. Ke2 {[%clk 0:00:10.3]} 31... a5 {[%clk 0:00:21.1]} 32.
Kf3 {[%clk 0:00:11]} 32... Be1 {[%clk 0:00:21.3]} 33. bxa5 {[%clk 0:00:11.4]}
33... bxa5 {[%clk 0:00:23.2]} 34. Nf4 {[%clk 0:00:12.7]} 34... Bf7 {[%clk
0:00:21.6]} 35. Bg6 {[%clk 0:00:11.8]} 35... Bxg6 {[%clk 0:00:19.8]} 36. Nxg6
{[%clk 0:00:13.7]} 36... a4 {[%clk 0:00:20]} 37. Nf4 {[%clk 0:00:14.1]} 37...
Bc3 {[%clk 0:00:19.1]} 38. Nd3 {[%clk 0:00:14.6]} 38... Kd5 {[%clk 0:00:19.2]}
39. Ke3 {[%clk 0:00:15.4]} 39... Bd4+ {[%clk 0:00:19]} 40. Kf4 {[%clk
0:00:15.6]} 40... Kc4 {[%clk 0:00:19.9]} 41. Ke4 {[%clk 0:00:16.4]} 41... Kc3
{[%clk 0:00:20.6]} 42. Nf4 {[%clk 0:00:16.6]} 42... Bc5 {[%clk 0:00:20.6]} 43.
Nxh5 {[%clk 0:00:14.6]} 43... g6 {[%clk 0:00:17.6]} 44. Nxf6 {[%clk 0:00:15.5]}
44... Bxa3 {[%clk 0:00:18.9]} 45. Nd5+ {[%clk 0:00:16.4]} 45... Kxc2 {[%clk
0:00:17]} 46. Nb6 {[%clk 0:00:18]} 46... Kb3 {[%clk 0:00:18.4]} 47. g4 {[%clk
0:00:18.6]} 47... Be7 {[%clk 0:00:16.9]} 48. Nxa4 {[%clk 0:00:19.5]} 48... Kxa4
{[%clk 0:00:18]} 49. h5 {[%clk 0:00:20.3]} 49... gxh5 {[%clk 0:00:16.7]} 50.
gxh5 {[%clk 0:00:21.1]} 1/2-1/2

[Event "*** Monthly 3|2 Blitz Masters"]
[Site "Chess.com"]
[Date "2014.10.28"]
[Round "8"]
[White "alexsuper1987"]
[Black "ruzomberok"]
[Result "1/2-1/2"]
[WhiteElo "2057"]
[BlackElo "2198"]
[TimeControl "180+2"]
[EndTime "13:28:11 PDT"]
[Termination "Game drawn by repetition"]

1. e4 {[%clk 0:02:52.4]} 1... e5 {[%clk 0:02:58.3]} 2. d4 {[%clk 0:02:52.8]}
2... exd4 {[%clk 0:02:59]} 3. Nf3 {[%clk 0:02:54]} 3... Nc6 {[%clk 0:02:56.8]}
4. c3 {[%clk 0:02:55.2]} 4... d5 {[%clk 0:02:50.4]} 5. exd5 {[%clk 0:02:56.2]}
5... Qxd5 {[%clk 0:02:52.3]} 6. cxd4 {[%clk 0:02:57.8]} 6... Bg4 {[%clk
0:02:44.9]} 7. Be2 {[%clk 0:02:59.1]} 7... Bb4+ {[%clk 0:02:42.3]} 8. Nc3 {[%clk
0:03:00.6]} 8... Bxf3 {[%clk 0:02:42.2]} 9. Bxf3 {[%clk 0:03:02.5]} 9... Qc4
{[%clk 0:02:43.5]} 10. Qb3 {[%clk 0:03:04.2]} 10... Qxb3 {[%clk 0:02:37.6]} 11.
axb3 {[%clk 0:03:06.1]} 11... Nge7 {[%clk 0:02:38]} 12. Be3 {[%clk 0:03:06.7]}
12... O-O-O {[%clk 0:02:37.5]} 13. O-O {[%clk 0:03:07.6]} 13... a6 {[%clk
0:02:33.2]} 14. Ra4 {[%clk 0:03:08]} 14... Bd6 {[%clk 0:02:27]} 15. Rc1 {[%clk
0:02:56.9]} 15... Rhe8 {[%clk 0:02:25.5]} 16. Ne4 {[%clk 0:02:48.1]} 16... h6
{[%clk 0:02:22]} 17. Nc5 {[%clk 0:02:38.6]} 17... f5 {[%clk 0:01:37.3]} 18. Nxa6
{[%clk 0:02:31.1]} 18... f4 {[%clk 0:01:32.8]} 19. Bd2 {[%clk 0:02:28.9]} 19...
bxa6 {[%clk 0:01:29.1]} 20. Bxc6 {[%clk 0:02:28.9]} 20... Nxc6 {[%clk
0:01:27.6]} 21. Rxc6 {[%clk 0:02:29.5]} 21... Re2 {[%clk 0:01:23.9]} 22. Bc3
{[%clk 0:02:21.5]} 22... Rc2 {[%clk 0:01:17.2]} 23. Ra1 {[%clk 0:02:11.7]} 23...
Re8 {[%clk 0:01:12.5]} 24. Rcxa6 {[%clk 0:02:06.9]} 24... Ree2 {[%clk
0:01:09.7]} 25. Rf1 {[%clk 0:01:47.5]} 25... Kb7 {[%clk 0:01:09.9]} 26. Raa1
{[%clk 0:01:45]} 26... g5 {[%clk 0:01:11]} 27. Rae1 {[%clk 0:01:45.2]} 27... h5
{[%clk 0:01:09.6]} 28. Rxe2 {[%clk 0:01:46.3]} 28... Rxe2 {[%clk 0:01:11.5]} 29.
Re1 {[%clk 0:01:47.3]} 29... Rxe1+ {[%clk 0:01:12.8]} 30. Bxe1 {[%clk
0:01:47.9]} 30... Kc6 {[%clk 0:01:14.5]} 31. Kf1 {[%clk 0:01:45]} 31... Kd5
{[%clk 0:01:13]} 32. Bc3 {[%clk 0:01:45.9]} 32... f3 {[%clk 0:01:01.9]} 33. g3
{[%clk 0:01:11]} 33... Be7 {[%clk 0:00:50]} 34. Ke1 {[%clk 0:01:07.5]} 34... Bf6
{[%clk 0:00:50]} 35. Kd2 {[%clk 0:00:46.3]} 35... Bxd4 {[%clk 0:00:50.7]} 36.
Bxd4 {[%clk 0:00:47.6]} 36... Kxd4 {[%clk 0:00:52.2]} 37. h3 {[%clk 0:00:47.2]}
37... g4 {[%clk 0:00:46.8]} 38. hxg4 {[%clk 0:00:47.3]} 38... hxg4 {[%clk
0:00:48.7]} 39. b4 {[%clk 0:00:48.6]} 39... Kc4 {[%clk 0:00:44.4]} 40. Ke3
{[%clk 0:00:44.5]} 40... Kxb4 {[%clk 0:00:45.8]} 41. Kf4 {[%clk 0:00:45.9]}
41... Kb3 {[%clk 0:00:47.1]} 42. Kxg4 {[%clk 0:00:47.3]} 42... Kxb2 {[%clk
0:00:48.3]} 43. Kxf3 {[%clk 0:00:46.4]} 43... c5 {[%clk 0:00:49.5]} 44. g4
{[%clk 0:00:43.7]} 44... c4 {[%clk 0:00:51]} 45. g5 {[%clk 0:00:45.2]} 45... c3
{[%clk 0:00:52.5]} 46. g6 {[%clk 0:00:46.7]} 46... c2 {[%clk 0:00:54]} 47. g7
{[%clk 0:00:48.1]} 47... c1=Q {[%clk 0:00:55.2]} 48. g8=Q {[%clk 0:00:48.6]}
48... Qc6+ {[%clk 0:00:53.7]} 49. Kg3 {[%clk 0:00:42.1]} 49... Qd6+ {[%clk
0:00:54.8]} 50. f4 {[%clk 0:00:41.6]} 50... Qd3+ {[%clk 0:00:55.9]} 51. Kg4
{[%clk 0:00:32.8]} 51... Qe2+ {[%clk 0:00:56.2]} 52. Kf5 {[%clk 0:00:30.8]}
52... Qb5+ {[%clk 0:00:56.1]} 53. Kg6 {[%clk 0:00:26.4]} 53... Qc6+ {[%clk
0:00:53.2]} 54. Kf5 {[%clk 0:00:15.8]} 54... Qc5+ {[%clk 0:00:51.3]} 55. Kf6
{[%clk 0:00:16.8]} 55... Qd4+ {[%clk 0:00:51.7]} 56. Kf5 {[%clk 0:00:12.3]}
56... Qd3+ {[%clk 0:00:53]} 57. Kg4 {[%clk 0:00:09.5]} 57... Qe2+ {[%clk
0:00:49.6]} 58. Kf5 {[%clk 0:00:07.7]} 58... Qd3+ {[%clk 0:00:49.7]} 59. Ke5
{[%clk 0:00:07.2]} 59... Qe3+ {[%clk 0:00:48.1]} 60. Kf5 {[%clk 0:00:07.8]}
60... Qd3+ {[%clk 0:00:49.5]} 1/2-1/2

[Event "*** Monthly 3|2 Blitz Masters"]
[Site "Chess.com"]
[Date "2014.10.28"]
[Round "8"]
[White "jcibarra"]
[Black "GeorgMeier"]
[Result "0-1"]
[WhiteElo "2479"]
[BlackElo "2556"]
[TimeControl "180+2"]
[EndTime "13:31:04 PDT"]
[Termination "GeorgMeier won by resignation"]

1. e4 {[%clk 0:03:00]} 1... e6 {[%clk 0:02:59]} 2. d4 {[%clk 0:03:00.9]} 2... d5
{[%clk 0:03:00]} 3. Bd3 {[%clk 0:03:02.3]} 3... dxe4 {[%clk 0:02:58.5]} 4. Bxe4
{[%clk 0:03:03.6]} 4... Nf6 {[%clk 0:03:00.1]} 5. Bf3 {[%clk 0:03:04.3]} 5... c5
{[%clk 0:03:01.1]} 6. Ne2 {[%clk 0:03:04.9]} 6... Be7 {[%clk 0:03:02.3]} 7. Nbc3
{[%clk 0:03:03.3]} 7... O-O {[%clk 0:03:01.9]} 8. Be3 {[%clk 0:03:03.3]} 8...
Qa5 {[%clk 0:03:02.7]} 9. O-O {[%clk 0:03:02.2]} 9... Rd8 {[%clk 0:03:03.3]} 10.
Qc1 {[%clk 0:02:48.1]} 10... Nc6 {[%clk 0:03:01.7]} 11. Rd1 {[%clk 0:02:44.8]}
11... cxd4 {[%clk 0:02:51.7]} 12. Nxd4 {[%clk 0:02:45.9]} 12... Ne5 {[%clk
0:02:51]} 13. Be2 {[%clk 0:02:44.9]} 13... Bd7 {[%clk 0:02:34.2]} 14. Nb3 {[%clk
0:02:41.7]} 14... Qc7 {[%clk 0:02:17.4]} 15. Bf4 {[%clk 0:02:42.8]} 15... Ne8
{[%clk 0:01:46.5]} 16. Qe3 {[%clk 0:02:39.6]} 16... f6 {[%clk 0:01:46.4]} 17.
Bxe5 {[%clk 0:02:33.3]} 17... Qxe5 {[%clk 0:01:42.2]} 18. Qxe5 {[%clk
0:02:30.2]} 18... fxe5 {[%clk 0:01:44.1]} 19. Ne4 {[%clk 0:02:29.6]} 19... Bc6
{[%clk 0:01:41.9]} 20. Bf3 {[%clk 0:02:10.6]} 20... Rac8 {[%clk 0:01:30.6]} 21.
c3 {[%clk 0:02:07.4]} 21... Nf6 {[%clk 0:01:30.2]} 22. Ng5 {[%clk 0:02:04.9]}
22... Bd5 {[%clk 0:01:21.2]} 23. Nd2 {[%clk 0:01:52.3]} 23... h6 {[%clk
0:01:20.5]} 24. Nge4 {[%clk 0:01:48.6]} 24... Kf7 {[%clk 0:01:19.5]} 25. b3
{[%clk 0:01:47.3]} 25... Bxe4 {[%clk 0:01:15.8]} 26. Nxe4 {[%clk 0:01:47.7]}
26... Nxe4 {[%clk 0:01:15.5]} 27. Bxe4 {[%clk 0:01:38.5]} 27... Rxc3 {[%clk
0:01:08.6]} 28. Rxd8 {[%clk 0:01:37.3]} 28... Bxd8 {[%clk 0:01:09.1]} 29. Rd1
{[%clk 0:01:38.6]} 29... Bb6 {[%clk 0:01:07.8]} 30. Kf1 {[%clk 0:01:38.6]} 30...
Bd4 {[%clk 0:01:07.1]} 31. Ke2 {[%clk 0:01:38]} 31... b5 {[%clk 0:01:04.7]} 32.
Rd3 {[%clk 0:01:37.4]} 32... Rc1 {[%clk 0:01:02.4]} 33. Rd1 {[%clk 0:01:37.8]}
33... Rc7 {[%clk 0:01:01.4]} 34. Rd2 {[%clk 0:01:33.8]} 34... b4 {[%clk
0:01:01.9]} 35. Rc2 {[%clk 0:01:32.8]} 35... Bc3 {[%clk 0:01:03.1]} 36. Rc1
{[%clk 0:01:33.6]} 36... Ke7 {[%clk 0:01:03.8]} 37. Rd1 {[%clk 0:01:34.9]} 37...
Rc5 {[%clk 0:01:04.1]} 38. Rc1 {[%clk 0:01:27.4]} 38... Kd6 {[%clk 0:01:04.6]}
39. Rd1+ {[%clk 0:01:28.3]} 39... Kc7 {[%clk 0:01:05.3]} 40. Kd3 {[%clk
0:01:26]} 40... Ra5 {[%clk 0:01:05.7]} 41. a4 {[%clk 0:01:25.2]} 41... Rc5
{[%clk 0:01:06.4]} 42. f3 {[%clk 0:01:24.7]} 42... Bd4 {[%clk 0:01:05.4]} 43.
Ke2 {[%clk 0:01:22.4]} 43... a5 {[%clk 0:01:04.7]} 44. Rd2 {[%clk 0:01:23.1]}
44... Kd6 {[%clk 0:01:05]} 45. Rc2 {[%clk 0:01:23.3]} 45... Bc3 {[%clk
0:01:06.1]} 46. Rc1 {[%clk 0:01:24.5]} 46... Ke7 {[%clk 0:01:07.2]} 47. Rc2
{[%clk 0:01:25]} 47... Rc8 {[%clk 0:01:08]} 48. Rc1 {[%clk 0:01:26.1]} 48... Kf6
{[%clk 0:01:07.5]} 49. Rc2 {[%clk 0:01:25.2]} 49... Rd8 {[%clk 0:01:07.9]} 50.
Bd3 {[%clk 0:01:22.8]} 50... h5 {[%clk 0:01:06]} 51. Be4 {[%clk 0:01:22.6]}
51... h4 {[%clk 0:01:00]} 52. Bd3 {[%clk 0:01:17]} 52... Kg5 {[%clk 0:01:00.7]}
53. Ke3 {[%clk 0:01:17.3]} 53... Rd4 {[%clk 0:00:56.2]} 54. g3 {[%clk
0:01:09.9]} 54... Kf6 {[%clk 0:00:55.9]} 55. f4 {[%clk 0:01:05.3]} 55... hxg3
{[%clk 0:00:50.2]} 56. hxg3 {[%clk 0:01:06]} 56... exf4+ {[%clk 0:00:48.3]} 57.
gxf4 {[%clk 0:01:06.8]} 57... Rd8 {[%clk 0:00:48.7]} 58. Rg2 {[%clk 0:01:06.9]}
58... Rh8 {[%clk 0:00:49.4]} 59. Bc4 {[%clk 0:01:04.3]} 59... Rh3+ {[%clk
0:00:41.1]} 60. Ke4 {[%clk 0:01:05.4]} 60... Rh4 {[%clk 0:00:41.8]} 61. Kf3
{[%clk 0:01:03.3]} 61... e5 {[%clk 0:00:36]} 62. fxe5+ {[%clk 0:00:56.7]} 62...
Bxe5 {[%clk 0:00:37.4]} 63. Rg4 {[%clk 0:00:57.3]} 63... Rh3+ {[%clk 0:00:38.2]}
64. Ke4 {[%clk 0:00:58]} 64... g5 {[%clk 0:00:35.2]} 65. Rg1 {[%clk 0:00:52.4]}
65... Bf4 {[%clk 0:00:27.7]} 66. Rg2 {[%clk 0:00:34.1]} 66... Re3+ {[%clk
0:00:28.2]} 67. Kd4 {[%clk 0:00:32.5]} 67... Re7 {[%clk 0:00:25.5]} 68. Bd3
{[%clk 0:00:20.5]} 68... Rc7 {[%clk 0:00:22.2]} 69. Bc4 {[%clk 0:00:19.9]} 69...
Re7 {[%clk 0:00:20.9]} 70. Bd3 {[%clk 0:00:20.3]} 70... Re5 {[%clk 0:00:20.7]}
71. Be4 {[%clk 0:00:19.7]} 71... Re8 {[%clk 0:00:18.3]} 72. Bd3 {[%clk
0:00:20.8]} 72... Rc8 {[%clk 0:00:18.9]} 73. Bc4 {[%clk 0:00:20.5]} 73... Rc7
{[%clk 0:00:20]} 74. Kd5 {[%clk 0:00:19.6]} 74... Be3 {[%clk 0:00:19.6]} 75. Rg3
{[%clk 0:00:18.5]} 75... Re7 {[%clk 0:00:19.9]} 76. Rg2 {[%clk 0:00:16.4]} 76...
Kf5 {[%clk 0:00:18.4]} 77. Bd3+ {[%clk 0:00:17]} 77... Kf4 {[%clk 0:00:18.1]}
78. Be2 {[%clk 0:00:18.6]} 78... Re5+ {[%clk 0:00:17.2]} 79. Kd6 {[%clk
0:00:20]} 79... Ke4 {[%clk 0:00:16.6]} 80. Bb5 {[%clk 0:00:16.2]} 80... Kd4
{[%clk 0:00:13.5]} 81. Bc6 {[%clk 0:00:15.3]} 81... Bf4 {[%clk 0:00:12.5]} 82.
Kd7 {[%clk 0:00:14.9]} 82... Kc3 {[%clk 0:00:13.5]} 83. Bb5 {[%clk 0:00:11.3]}
83... Kxb3 {[%clk 0:00:14.5]} 84. Kc6 {[%clk 0:00:13.2]} 84... Kc3 {[%clk
0:00:14.7]} 85. Kb6 {[%clk 0:00:14.6]} 85... b3 {[%clk 0:00:16]} 86. Kxa5 {[%clk
0:00:15]} 86... b2 {[%clk 0:00:17.3]} 87. Rg1 {[%clk 0:00:16.6]} 87... Bc1
{[%clk 0:00:18.3]} 88. Rg3+ {[%clk 0:00:17.8]} 88... Re3 {[%clk 0:00:19.6]} 89.
Rxg5 {[%clk 0:00:18.7]} 89... b1=Q {[%clk 0:00:20.6]} 90. Rc5+ {[%clk
0:00:20.6]} 90... Kd2 {[%clk 0:00:20]} 0-1

[Event "*** Monthly 3|2 Blitz Masters"]
[Site "Chess.com"]
[Date "2014.10.28"]
[Round "8"]
[White "gumersindo"]
[Black "XeresLt"]
[Result "1-0"]
[WhiteElo "2157"]
[BlackElo "2266"]
[TimeControl "180+2"]
[EndTime "13:31:05 PDT"]
[Termination "gumersindo won by resignation"]

1. d4 {[%clk 0:02:57.4]} 1... Nf6 {[%clk 0:02:49.7]} 2. c4 {[%clk 0:02:53.3]}
2... g6 {[%clk 0:02:50.3]} 3. Nc3 {[%clk 0:02:53.8]} 3... Bg7 {[%clk 0:02:50.7]}
4. e4 {[%clk 0:02:54.9]} 4... O-O {[%clk 0:02:51.8]} 5. Nf3 {[%clk 0:02:55.9]}
5... d6 {[%clk 0:02:52.5]} 6. Be2 {[%clk 0:02:57]} 6... e5 {[%clk 0:02:53.5]} 7.
O-O {[%clk 0:02:57.8]} 7... Nc6 {[%clk 0:02:54.8]} 8. d5 {[%clk 0:02:59.1]} 8...
Ne7 {[%clk 0:02:56.4]} 9. Ne1 {[%clk 0:03:00.6]} 9... a5 {[%clk 0:02:52.7]} 10.
Nd3 {[%clk 0:03:00.6]} 10... a4 {[%clk 0:02:53.4]} 11. f3 {[%clk 0:02:56.5]}
11... Bd7 {[%clk 0:02:53.8]} 12. Be3 {[%clk 0:02:55.4]} 12... b6 {[%clk
0:02:52.4]} 13. b4 {[%clk 0:02:52.6]} 13... axb3 {[%clk 0:02:52]} 14. axb3
{[%clk 0:02:53.3]} 14... Nh5 {[%clk 0:02:48.5]} 15. b4 {[%clk 0:02:47.3]} 15...
f5 {[%clk 0:02:45.1]} 16. c5 {[%clk 0:02:45.4]} 16... bxc5 {[%clk 0:02:43.7]}
17. bxc5 {[%clk 0:02:45.8]} 17... Nf4 {[%clk 0:02:38.4]} 18. c6 {[%clk
0:02:42.5]} 18... Be8 {[%clk 0:01:45.6]} 19. Rxa8 {[%clk 0:02:35.8]} 19... Qxa8
{[%clk 0:01:38.6]} 20. Nxf4 {[%clk 0:02:36.3]} 20... exf4 {[%clk 0:01:39.3]} 21.
Bd4 {[%clk 0:02:36.8]} 21... fxe4 {[%clk 0:01:37.7]} 22. fxe4 {[%clk 0:02:36.1]}
22... g5 {[%clk 0:01:27.6]} 23. Bxg7 {[%clk 0:02:33.9]} 23... Kxg7 {[%clk
0:01:28.4]} 24. Qd4+ {[%clk 0:02:35.3]} 24... Kg8 {[%clk 0:01:26.8]} 25. Nb5
{[%clk 0:02:31.1]} 25... Qb8 {[%clk 0:01:13]} 26. Ra1 {[%clk 0:02:22.6]} 26...
Ng6 {[%clk 0:01:06.9]} 27. Ra7 {[%clk 0:02:18.9]} 27... Rf7 {[%clk 0:01:04.6]}
28. Bg4 {[%clk 0:02:15.4]} 28... Qxb5 {[%clk 0:01:00.1]} 29. Be6 {[%clk
0:02:15.4]} 29... Qb1+ {[%clk 0:00:56.7]} 30. Kf2 {[%clk 0:02:14.8]} 30... Qc2+
{[%clk 0:00:56.6]} 31. Kg1 {[%clk 0:02:14]} 31... Qc1+ {[%clk 0:00:49.5]} 32.
Kf2 {[%clk 0:02:12.8]} 32... Qc2+ {[%clk 0:00:26.7]} 33. Kf1 {[%clk 0:01:53.8]}
33... Ne5 {[%clk 0:00:15.5]} 34. Rxc7 {[%clk 0:01:34.7]} 34... f3 {[%clk
0:00:16.7]} 35. gxf3 {[%clk 0:01:23.6]} 35... Nxf3 {[%clk 0:00:17]} 36. Bxf7+
{[%clk 0:01:21.6]} 36... Bxf7 {[%clk 0:00:17.8]} 37. Rc8+ {[%clk 0:01:18.5]}
37... Be8 {[%clk 0:00:19]} 38. Rxe8+ {[%clk 0:01:08.4]} 38... Kf7 {[%clk
0:00:19.6]} 39. Rf8+ {[%clk 0:01:09.2]} 39... Kxf8 {[%clk 0:00:19.8]} 40. Qf6+
{[%clk 0:01:10.5]} 40... Kg8 {[%clk 0:00:19.6]} 41. Qxf3 {[%clk 0:01:11.2]}
41... Kg7 {[%clk 0:00:18.6]} 42. h3 {[%clk 0:01:02.7]} 42... h6 {[%clk 0:00:18]}
43. Qf5 {[%clk 0:01:02.8]} 43... Qc1+ {[%clk 0:00:18.5]} 44. Kf2 {[%clk
0:01:03.1]} 44... Qd2+ {[%clk 0:00:19.4]} 45. Kg3 {[%clk 0:01:03.5]} 45... Qe3+
{[%clk 0:00:18.2]} 46. Qf3 {[%clk 0:00:59.1]} 46... Qg1+ {[%clk 0:00:18.8]} 47.
Qg2 {[%clk 0:00:56.7]} 47... Qe3+ {[%clk 0:00:18.8]} 48. Kh2 {[%clk 0:00:56.6]}
48... Qf4+ {[%clk 0:00:19.8]} 49. Kh1 {[%clk 0:00:54.5]} 49... Qc1+ {[%clk
0:00:20.4]} 50. Qg1 {[%clk 0:00:54.3]} 50... Qc2 {[%clk 0:00:21.5]} 51. Qe3
{[%clk 0:00:51]} 51... Kg6 {[%clk 0:00:21.3]} 52. e5 {[%clk 0:00:44.5]} 52...
Qd1+ {[%clk 0:00:19.6]} 53. Kh2 {[%clk 0:00:42.2]} 53... Qc2+ {[%clk 0:00:11.9]}
54. Kg3 {[%clk 0:00:39.6]} 54... h5 {[%clk 0:00:11.1]} 55. exd6 {[%clk
0:00:29.4]} 55... h4+ {[%clk 0:00:11.7]} 56. Kf3 {[%clk 0:00:29.2]} 56... Qd1+
{[%clk 0:00:09]} 57. Kf2 {[%clk 0:00:26.4]} 57... Qc2+ {[%clk 0:00:09]} 58. Qe2
{[%clk 0:00:21.3]} 58... Qf5+ {[%clk 0:00:09.5]} 59. Kg1 {[%clk 0:00:22.2]}
59... Qxd5 {[%clk 0:00:09.4]} 60. c7 {[%clk 0:00:20.5]} 60... Qd4+ {[%clk
0:00:09.8]} 61. Qf2 {[%clk 0:00:21]} 61... Qd1+ {[%clk 0:00:10.9]} 62. Kg2
{[%clk 0:00:21.9]} 62... Qd5+ {[%clk 0:00:11.4]} 63. Qf3 {[%clk 0:00:23.1]}
63... Qd2+ {[%clk 0:00:12.4]} 64. Kf1 {[%clk 0:00:24]} 64... Qc1+ {[%clk
0:00:09.9]} 65. Ke2 {[%clk 0:00:25.2]} 65... Qc2+ {[%clk 0:00:10.8]} 66. Ke3
{[%clk 0:00:26]} 66... Qc3+ {[%clk 0:00:12]} 67. Ke4 {[%clk 0:00:27.3]} 67...
Qc6+ {[%clk 0:00:12.4]} 68. Ke3 {[%clk 0:00:26.4]} 68... Qc3+ {[%clk 0:00:11.1]}
69. Kf2 {[%clk 0:00:27.1]} 69... Qd2+ {[%clk 0:00:08.9]} 70. Qe2 {[%clk
0:00:26.5]} 70... Qf4+ {[%clk 0:00:09.7]} 71. Kg1 {[%clk 0:00:23.8]} 71... Qg3+
{[%clk 0:00:10]} 72. Qg2 {[%clk 0:00:21.9]} 72... Qe1+ {[%clk 0:00:09.6]} 73.
Kh2 {[%clk 0:00:22.6]} 73... Qe5+ {[%clk 0:00:10.3]} 74. Kh1 {[%clk 0:00:23]}
74... Qe1+ {[%clk 0:00:11]} 75. Qg1 {[%clk 0:00:22.5]} 75... Qe4+ {[%clk
0:00:12.1]} 76. Kh2 {[%clk 0:00:22.4]} 76... Qe2+ {[%clk 0:00:12.9]} 77. Qg2
{[%clk 0:00:21.3]} 77... Qe5+ {[%clk 0:00:13.8]} 78. Kg1 {[%clk 0:00:22.3]}
78... Qe1+ {[%clk 0:00:14.2]} 79. Qf1 {[%clk 0:00:23.3]} 79... Qg3+ {[%clk
0:00:15.2]} 80. Kh1 {[%clk 0:00:23.6]} 80... Qxd6 {[%clk 0:00:13.8]} 81. c8=Q
{[%clk 0:00:23.5]} 81... Qd5+ {[%clk 0:00:15.2]} 82. Kg1 {[%clk 0:00:20.8]}
82... Qd4+ {[%clk 0:00:13.6]} 83. Qf2 {[%clk 0:00:21.9]} 83... Qd1+ {[%clk
0:00:14.6]} 84. Kg2 {[%clk 0:00:22.8]} 84... Qd5+ {[%clk 0:00:14.7]} 85. Kf1
{[%clk 0:00:21.5]} 85... Qd1+ {[%clk 0:00:14.4]} 86. Qe1 {[%clk 0:00:22.5]}
86... Qf3+ {[%clk 0:00:14.9]} 87. Kg1 {[%clk 0:00:23.3]} 1-0

[Event "*** Monthly 3|2 Blitz Masters"]
[Site "Chess.com"]
[Date "2014.10.28"]
[Round "9"]
[White "VovAn1991"]
[Black "THORK"]
[Result "1-0"]
[WhiteElo "2336"]
[BlackElo "2167"]
[TimeControl "180+2"]
[EndTime "13:36:35 PDT"]
[Termination "VovAn1991 won by resignation"]

1. f4 {[%clk 0:02:59.8]} 1... d5 {[%clk 0:02:46.5]} 2. g3 {[%clk 0:02:58.5]}
2... g6 {[%clk 0:02:46.5]} 3. Nf3 {[%clk 0:02:59.4]} 3... Bg7 {[%clk 0:02:47]}
4. Bg2 {[%clk 0:02:59.7]} 4... h5 {[%clk 0:02:48.3]} 5. d3 {[%clk 0:02:59.8]}
5... d4 {[%clk 0:02:45.6]} 6. c3 {[%clk 0:02:52.1]} 6... c5 {[%clk 0:02:46.2]}
7. cxd4 {[%clk 0:02:51.3]} 7... cxd4 {[%clk 0:02:47.4]} 8. Ne5 {[%clk
0:02:34.2]} 8... h4 {[%clk 0:02:39.5]} 9. g4 {[%clk 0:02:31.2]} 9... h3 {[%clk
0:02:40.1]} 10. Bf3 {[%clk 0:02:31.7]} 10... e6 {[%clk 0:02:30.2]} 11. Na3
{[%clk 0:02:24.8]} 11... Bxe5 {[%clk 0:02:24.3]} 12. fxe5 {[%clk 0:02:26.7]}
12... Qa5+ {[%clk 0:02:25.3]} 13. Bd2 {[%clk 0:02:23]} 13... Qxe5 {[%clk
0:02:26]} 14. Nc4 {[%clk 0:02:21.6]} 14... Qc7 {[%clk 0:02:23]} 15. Bb4 {[%clk
0:02:21.7]} 15... Ne7 {[%clk 0:02:20.3]} 16. Nd6+ {[%clk 0:02:20.4]} 16... Kf8
{[%clk 0:02:21.5]} 17. Rc1 {[%clk 0:02:22]} 17... Nbc6 {[%clk 0:02:22]} 18. O-O
{[%clk 0:02:05.4]} 18... Bd7 {[%clk 0:02:22.8]} 19. Bxc6 {[%clk 0:02:05]} 19...
Bxc6 {[%clk 0:02:20.8]} 20. Rxf7+ {[%clk 0:02:01.6]} 20... Kg8 {[%clk
0:02:22.7]} 21. Qf1 {[%clk 0:02:01.3]} 21... Rh7 {[%clk 0:02:14.8]} 22. Rxh7
{[%clk 0:01:57]} 22... Kxh7 {[%clk 0:02:15.9]} 23. Qf7+ {[%clk 0:01:58.1]} 23...
Kh6 {[%clk 0:02:16.6]} 24. Bd2+ {[%clk 0:01:43.8]} 24... g5 {[%clk 0:02:14.6]}
25. Qf6+ {[%clk 0:01:32.8]} 25... Kh7 {[%clk 0:02:15.5]} 26. Nf7 {[%clk
0:01:29.5]} 26... Nd5 {[%clk 0:02:05.3]} 27. Nxg5+ {[%clk 0:01:27]} 27... Kg8
{[%clk 0:02:06.6]} 28. Qxe6+ {[%clk 0:01:27.7]} 28... Kh8 {[%clk 0:02:05.8]} 29.
Rf1 {[%clk 0:01:20.4]} 29... Rg8 {[%clk 0:02:01.7]} 30. Nf7+ {[%clk 0:01:19.6]}
1-0